bitfinex/quotes_BTCUSD_20250703
["timestamp","ask_amount","ask_price","bid_price","bid_amount"]
[1751538414778,0.0014,109920.0,109910.0,0.92284115]
[1751538414986,0.0014,109920.0,109910.0,0.93193933]
[1751538415145,0.0014,109920.0,109910.0,0.92284115]
[1751538415566,0.0014,109920.0,109910.0,0.93193933]
[1751538415949,0.0014,109920.0,109910.0,0.91199634]
[1751538416545,0.0014,109920.0,109910.0,0.92109444]
[1751538416753,0.0014,109920.0,109910.0,0.91199634]
[1751538417160,0.0014,109920.0,109910.0,0.89379989]
[1751538417360,0.0014,109920.0,109910.0,0.90289816]
[1751538417651,0.0014,109920.0,109910.0,0.91199634]
[1751538418834,0.0014,109920.0,109910.0,0.90289816]
[1751538419174,0.0014,109920.0,109910.0,0.91199634]
[1751538420595,0.0014,109920.0,109910.0,0.92109444]
[1751538420795,0.0014,109920.0,109910.0,0.93679444]
[1751538421596,0.0014,109920.0,109910.0,0.92109444]
[1751538422463,0.0014,109920.0,109910.0,0.89379989]
[1751538422668,0.0014,109920.0,109910.0,0.90289816]
[1751538423901,0.0014,109920.0,109910.0,0.91199634]
[1751538425321,0.0014,109920.0,109910.0,0.92109444]
[1751538425753,0.0014,109920.0,109910.0,0.90289816]
[1751538425951,0.0014,109920.0,109910.0,0.91199634]
[1751538426091,0.0014,109920.0,109910.0,0.90289816]
[1751538426296,0.0014,109920.0,109910.0,0.91199634]
[1751538426808,0.0014,109920.0,109910.0,0.92109444]
[1751538427028,0.0014,109920.0,109910.0,0.91199634]
[1751538427604,0.0014,109920.0,109910.0,0.89379989]
[1751538427802,0.0014,109920.0,109910.0,0.71183283]
[1751538428404,0.0014,109920.0,109910.0,0.4044561]
[1751538428606,0.0169,109920.0,109910.0,0.4044561]
[1751538428813,0.0169,109920.0,109910.0,0.70273448]
[1751538429428,0.0169,109920.0,109910.0,0.4044561]
[1751538429625,0.0169,109920.0,109910.0,0.70273448]
[1751538430027,0.0169,109920.0,109910.0,0.71183283]
[1751538430236,0.0169,109920.0,109910.0,0.7209311]
[1751538431225,0.0169,109920.0,109910.0,0.90289816]
[1751538431737,0.0169,109920.0,109910.0,0.71183283]
[1751538432777,0.0169,109920.0,109910.0,0.7209311]
[1751538433788,0.0169,109920.0,109910.0,0.90289816]
[1751538433992,0.0014,109920.0,109910.0,0.91199634]
[1751538434243,0.0014,109920.0,109910.0,0.85735219]
[1751538434472,0.0317,109930.0,109920.0,0.29827838]
[1751538434687,0.0317,109930.0,109920.0,0.54183022]
[1751538435892,0.0327,109930.0,109920.0,0.54683022]
[1751538438322,0.0327,109930.0,109920.0,0.24855184]
[1751538438524,0.0327,109930.0,109920.0,0.54683022]
[1751538440859,0.0331,109930.0,109920.0,0.54683022]
[1751538442482,0.0331,109930.0,109920.0,0.24855184]
[1751538442847,0.0331,109930.0,109920.0,0.17569481]
[1751538444143,0.33137838,109930.0,109920.0,0.17569481]
[1751538444889,0.33137838,109930.0,109920.0,0.005]
[1751538449911,0.0331,109930.0,109920.0,0.005]
[1751538450092,0.33137838,109930.0,109920.0,0.005]
[1751538456145,0.0331,109930.0,109920.0,0.005]
[1751538456341,0.33137838,109930.0,109920.0,0.005]
[1751538467467,0.0331,109930.0,109920.0,0.005]
[1751538467667,0.33137838,109930.0,109920.0,0.005]
[1751538468343,0.0331,109930.0,109920.0,0.005]
[1751538468672,0.33137838,109930.0,109920.0,0.005]
[1751538469030,0.33137838,109930.0,109910.0,0.56649839]
[1751538469250,0.33137838,109930.0,109910.0,0.54920927]
[1751538469456,0.33137838,109930.0,109910.0,0.55830762]
[1751538470397,0.33137838,109930.0,109910.0,0.54920927]
[1751538470579,0.33137838,109930.0,109910.0,0.55830762]
[1751538471332,0.33037838,109930.0,109910.0,0.55830762]
[1751538471465,0.33037838,109930.0,109910.0,0.55930762]
[1751538471671,0.33137838,109930.0,109910.0,0.55220927]
[1751538473098,0.33137838,109930.0,109910.0,0.56130762]
[1751538473331,0.33137838,109930.0,109910.0,0.55220927]
[1751538473704,0.33137838,109930.0,109910.0,0.55240927]
[1751538475524,0.33137838,109930.0,109910.0,0.56150762]
[1751538475959,0.33137838,109930.0,109910.0,0.55240927]
[1751538476176,0.33137838,109930.0,109910.0,0.56150762]
[1751538476368,0.33137838,109930.0,109910.0,0.55240927]
[1751538476541,0.33137838,109930.0,109910.0,0.56150762]
[1751538476754,0.33137838,109930.0,109910.0,0.55240927]
[1751538477124,0.0331,109930.0,109910.0,0.55240927]
[1751538477534,0.33137838,109930.0,109910.0,0.55240927]
[1751538477736,0.33137838,109930.0,109910.0,0.25413089]
[1751538477940,0.33137838,109930.0,109910.0,0.55240927]
[1751538478314,0.33137838,109930.0,109910.0,0.56150762]
[1751538478735,0.33137838,109930.0,109910.0,0.55240927]
[1751538479091,0.32977838,109920.0,109910.0,0.16269396]
[1751538480088,0.32977838,109920.0,109910.0,0.16069396]
[1751538480568,0.33077838,109920.0,109910.0,0.16469396]
[1751538482554,0.0325,109920.0,109910.0,0.16469396]
[1751538482755,0.33077838,109920.0,109910.0,0.16469396]
[1751538482955,0.33077838,109920.0,109910.0,0.22277536]
[1751538483780,0.33077838,109920.0,109910.0,0.22177536]
[1751538484134,0.33077838,109920.0,109910.0,0.22377536]
[1751538485113,0.33077838,109920.0,109910.0,0.15571833]
[1751538485313,0.33077838,109920.0,109910.0,0.06081795]
[1751538492589,0.51793838,109920.0,109910.0,0.06081795]
[1751538494301,0.21966,109920.0,109910.0,0.06081795]
[1751538494535,0.33077838,109920.0,109910.0,0.06081795]
[1751538496938,0.0325,109920.0,109910.0,0.06081795]
[1751538497144,0.33077838,109920.0,109910.0,0.06081795]
[1751538498319,0.0325,109920.0,109910.0,0.06081795]
[1751538498553,0.0325,109920.0,109910.0,0.09720825]
[1751538498735,0.62905676,109920.0,109910.0,0.09720825]
[1751538499234,0.62905676,109920.0,109910.0,0.0385903]
[1751538499440,0.62805676,109920.0,109910.0,0.0385903]
[1751538499682,0.62905676,109920.0,109910.0,0.0385903]
[1751538500115,0.62905676,109920.0,109910.0,0.0395903]
[1751538503273,0.33077838,109920.0,109910.0,0.0395903]
[1751538506741,0.62905676,109920.0,109910.0,0.0395903]
[1751538508232,0.33077838,109920.0,109910.0,0.0395903]
[1751538510627,0.51781838,109920.0,109910.0,0.0395903]
[1751538511937,0.51821838,109920.0,109910.0,0.0395903]
[1751538513781,0.81649676,109920.0,109910.0,0.0395903]
[1751538516724,0.51821838,109920.0,109910.0,0.0395903]
[1751538516940,0.0329,109920.0,109910.0,0.0395903]
[1751538517147,0.0014,109920.0,109910.0,0.20004882]
[1751538517353,0.0014,109920.0,109910.0,0.49116232]
[1751538517580,0.0014,109920.0,109910.0,0.43654437]
[1751538517788,0.0014,109920.0,109910.0,0.5046014]
[1751538518419,0.0014,109920.0,109910.0,0.51369975]
[1751538518626,0.0014,109920.0,109910.0,0.20632302]
[1751538518849,0.0014,109920.0,109910.0,0.5046014]
[1751538520949,0.0014,109920.0,109910.0,0.5051014]
[1751538522227,0.0014,109920.0,109910.0,0.44614272]
[1751538522434,0.0014,109920.0,109910.0,0.43704437]
[1751538523090,0.0014,109920.0,109910.0,0.44614272]
[1751538523727,0.0014,109920.0,109910.0,0.43704437]
[1751538525647,0.0014,109920.0,109910.0,0.44614272]
[1751538525887,0.0014,109920.0,109910.0,0.42084437]
[1751538526735,0.0014,109920.0,109910.0,0.42994272]
[1751538526947,0.0014,109920.0,109910.0,0.42084437]
[1751538527151,0.0014,109920.0,109910.0,0.12256599]
[1751538527359,0.0014,109920.0,109910.0,0.42994272]
[1751538527562,0.0014,109920.0,109910.0,0.42084437]
[1751538527768,0.0014,109920.0,109910.0,0.42994272]
[1751538528008,0.0014,109920.0,109910.0,0.42084437]
[1751538529238,0.0014,109920.0,109910.0,0.42994272]
[1751538529469,0.0014,109920.0,109910.0,0.40504437]
[1751538530589,0.0014,109920.0,109910.0,0.41414272]
[1751538531237,0.0014,109920.0,109910.0,0.40504437]
[1751538531442,0.0014,109920.0,109910.0,0.41414272]
[1751538532065,0.0014,109920.0,109910.0,0.40504437]
[1751538533745,0.0014,109920.0,109910.0,0.41414272]
[1751538533932,0.0014,109920.0,109910.0,0.40504437]
[1751538538114,0.0014,109920.0,109910.0,0.41414272]
[1751538538504,0.0014,109920.0,109910.0,0.40504437]
[1751538540887,0.0014,109920.0,109910.0,0.41414272]
[1751538541133,0.0014,109920.0,109910.0,0.40504437]
[1751538542248,0.0014,109920.0,109910.0,0.4731014]
[1751538545022,0.0014,109920.0,109910.0,0.48219975]
[1751538545237,0.0014,109920.0,109910.0,0.4731014]
[1751538546569,0.0014,109920.0,109910.0,0.48219975]
[1751538546735,0.0014,109920.0,109910.0,0.4731014]
[1751538547153,0.0014,109920.0,109910.0,0.65506846]
[1751538547334,0.0014,109920.0,109910.0,0.4731014]
[1751538547530,0.0014,109920.0,109910.0,0.48219975]
[1751538547737,0.0014,109920.0,109910.0,0.4731014]
[1751538548109,0.0014,109920.0,109910.0,0.48219975]
[1751538549894,0.0178,109920.0,109910.0,0.4731014]
[1751538550314,0.0014,109920.0,109910.0,0.48219975]
[1751538551078,0.0014,109920.0,109910.0,0.4731014]
[1751538551681,0.0014,109920.0,109910.0,0.48219975]
[1751538552345,0.0014,109920.0,109910.0,0.4731014]
[1751538555556,0.0014,109920.0,109910.0,0.48219975]
[1751538556907,0.0014,109920.0,109910.0,0.4731014]
[1751538557306,0.0164,109920.0,109910.0,0.4731014]
[1751538560642,0.0014,109920.0,109910.0,0.4731014]
[1751538561019,0.0014,109920.0,109910.0,0.48219975]
[1751538561253,0.0014,109920.0,109910.0,0.66416681]
[1751538561482,0.0014,109920.0,109910.0,0.67326508]
[1751538561685,0.0014,109920.0,109910.0,0.4731014]
[1751538561890,0.0173,109920.0,109910.0,0.4731014]
[1751538562676,0.0173,109920.0,109910.0,0.48219975]
[1751538562826,0.0173,109920.0,109910.0,0.4731014]
[1751538563848,0.0173,109920.0,109910.0,0.48219975]
[1751538564364,0.0173,109920.0,109910.0,0.4731014]
[1751538564945,0.0326,109920.0,109910.0,0.4731014]
[1751538565803,0.33087838,109920.0,109910.0,0.07125703]
[1751538565999,0.33087838,109920.0,109910.0,0.05784897]
[1751538566975,0.62915676,109920.0,109910.0,0.09426614]
[1751538567195,0.81575676,109920.0,109910.0,0.09426614]
[1751538568365,0.81575676,109920.0,109910.0,0.03961717]
[1751538569322,0.51747838,109920.0,109910.0,0.03961717]
[1751538571894,0.2192,109920.0,109910.0,0.03961717]
[1751538572093,0.51747838,109920.0,109910.0,0.03961717]
[1751538578215,0.2192,109920.0,109910.0,0.03961717]
[1751538578447,0.51747838,109920.0,109910.0,0.03961717]
[1751538580756,0.51743838,109920.0,109910.0,0.03961717]
[1751538593226,0.51743838,109920.0,109910.0,0.09426614]
[1751538596346,0.51743838,109920.0,109910.0,0.05784897]
[1751538599261,0.21916,109920.0,109910.0,0.05784897]
[1751538599446,0.51743838,109920.0,109910.0,0.05784897]
[1751538599861,0.51743838,109920.0,109910.0,0.05984897]
[1751538602761,0.21916,109920.0,109910.0,0.05984897]
[1751538602902,0.51743838,109920.0,109910.0,0.05984897]
[1751538605055,0.51743838,109920.0,109910.0,0.07692748]
[1751538608034,0.51743838,109920.0,109910.0,0.07692816]
[1751538611773,0.21916,109920.0,109910.0,0.07692816]
[1751538612005,0.51743838,109920.0,109910.0,0.07692816]
[1751538613163,0.21916,109920.0,109910.0,0.07692816]
[1751538613385,0.51743838,109920.0,109910.0,0.07692816]
[1751538613765,0.33087838,109920.0,109910.0,0.07692816]
[1751538614015,0.51723838,109920.0,109910.0,0.07692816]
[1751538617622,0.51723838,109920.0,109910.0,0.05984897]
[1751538617774,0.51723838,109920.0,109910.0,0.07692606]
[1751538617978,0.21896,109920.0,109910.0,0.07692606]
[1751538618150,0.51723838,109920.0,109910.0,0.07692606]
[1751538620018,0.85748056,109920.0,109910.0,0.07692606]
[1751538620596,0.81551676,109920.0,109910.0,0.11335804]
[1751538620791,0.51723838,109920.0,109910.0,0.11335804]
[1751538622970,0.51723838,109920.0,109910.0,0.09628095]
[1751538625244,0.81551676,109920.0,109910.0,0.09628095]
[1751538627210,0.81551676,109920.0,109910.0,0.04163198]
[1751538628418,0.87252817,109920.0,109910.0,0.04163198]
[1751538629854,0.87240817,109920.0,109910.0,0.04163198]
[1751538630312,0.87378561,109920.0,109910.0,0.04163198]
[1751538633699,0.87378561,109920.0,109910.0,0.0052]
[1751538633700,1.17446444,109920.0,109910.0,0.0052]
[1751538633894,1.18356196,109920.0,109910.0,0.0052]
[1751538634499,1.18356196,109920.0,109910.0,0.0042]
[1751538634698,1.18256196,109920.0,109910.0,0.0022]
[1751538635075,1.18456196,109920.0,109910.0,0.0022]
[1751538635684,1.17546502,109920.0,109910.0,0.0022]
[1751538637113,1.16736791,109920.0,109910.0,0.01072807]
[1751538640735,1.46564629,109920.0,109910.0,0.01072807]
[1751538641846,1.46464629,109920.0,109910.0,0.01072807]
[1751538642059,1.46264629,109920.0,109910.0,0.01072807]
[1751538642489,1.46564629,109920.0,109910.0,0.01172807]
[1751538643639,1.46764629,109920.0,109910.0,0.01172807]
[1751538643883,0.58190802,109920.0,109910.0,0.0032]
[1751538644104,1.16721337,109920.0,109910.0,0.0032]
[1751538644551,0.12941437,109920.0,109910.0,0.0032]
[1751538644770,0.87563106,109920.0,109910.0,0.0032]
[1751538645450,0.88472808,109920.0,109910.0,0.0032]
[1751538645659,0.97616501,109920.0,109910.0,0.0032]
[1751538646060,0.89382519,109920.0,109910.0,0.0032]
[1751538646394,1.17630989,109920.0,109910.0,0.0032]
[1751538646596,1.45639463,109920.0,109910.0,0.01171505]
[1751538646808,1.85302319,109920.0,109910.0,0.01171505]
[1751538646985,1.85302319,109920.0,109910.0,0.0032]
[1751538646986,2.44957995,109920.0,109910.0,0.0032]
[1751538647187,2.51580956,109920.0,109910.0,0.0032]
[1751538647408,6.64833342,109920.0,109910.0,0.0032]
[1751538647814,6.39055564,109920.0,109910.0,0.0032]
[1751538649032,6.31741278,109920.0,109910.0,0.0032]
[1751538654167,1.31741278,109920.0,109910.0,0.0032]
[1751538654407,6.31741278,109920.0,109910.0,0.0032]
[1751538665078,6.13121278,109920.0,109910.0,0.0032]
[1751538665293,6.13121278,109920.0,109910.0,0.01172381]
[1751538665294,0.91634469,109920.0,109910.0,0.01172381]
[1751538665475,1.20751437,109920.0,109910.0,0.01172381]
[1751538668195,1.20751437,109920.0,109910.0,0.01172653]
[1751538668642,1.2989513,109920.0,109910.0,0.01172653]
[1751538670424,1.28985403,109920.0,109910.0,0.01172653]
[1751538676256,1.10790353,109920.0,109910.0,0.01172653]
[1751538676452,0.09821437,109920.0,109910.0,0.01172653]
[1751538676674,0.23849744,109920.0,109910.0,0.04352653]
[1751538676875,0.23849744,109920.0,109910.0,0.035]
[1751538677110,0.37102612,109920.0,109910.0,0.035]
[1751538677337,0.05249744,109920.0,109910.0,0.035]
[1751538677501,0.55702612,109920.0,109910.0,0.035]
[1751538678697,0.55702612,109920.0,109910.0,0.04139486]
[1751538679089,0.61549762,109920.0,109910.0,0.04139486]
[1751538680237,0.61549762,109920.0,109910.0,0.04139224]
[1751538683056,0.61549762,109920.0,109910.0,0.02599224]
[1751538683258,0.29696894,109920.0,109910.0,0.02599224]
[1751538683498,0.61549762,109920.0,109910.0,0.02599224]
[1751538683923,0.61549762,109920.0,109910.0,0.04129224]
[1751538684359,0.05249744,109920.0,109910.0,0.04129224]
[1751538684562,0.23845744,109920.0,109910.0,0.04129224]
[1751538686305,0.05112,109920.0,109910.0,0.0412889]
[1751538686502,0.23704,109920.0,109910.0,0.0412889]
[1751538686946,0.05249744,109920.0,109910.0,0.0412889]
[1751538687144,0.23841744,109920.0,109910.0,0.0412889]
[1751538687417,0.23341744,109920.0,109910.0,0.0402889]
[1751538687619,0.04612,109920.0,109910.0,0.0402889]
[1751538687823,0.23304,109920.0,109910.0,0.0369]
[1751538695397,0.55156868,109920.0,109910.0,0.05393185]
[1751538695558,0.60963212,109920.0,109910.0,0.05393185]
[1751538695740,0.55156868,109920.0,109910.0,0.05393185]
[1751538695964,0.55156868,109920.0,109910.0,0.03863185]
[1751538698306,0.55156868,109920.0,109910.0,0.05463185]
[1751538699150,0.23304,109920.0,109910.0,0.05463185]
[1751538705250,0.23304,109920.0,109910.0,0.03863185]
[1751538707653,0.0014,109920.0,109910.0,0.05373185]
[1751538707814,0.1872,109920.0,109910.0,0.05373185]
[1751538709176,0.0014,109920.0,109910.0,0.05373185]
[1751538709389,0.1872,109920.0,109910.0,0.05373185]
[1751538709523,0.0014,109920.0,109910.0,0.05373185]
[1751538709721,0.1872,109920.0,109910.0,0.09006646]
[1751538710214,0.1872,109920.0,109910.0,0.50003207]
[1751538710215,0.0014,109920.0,109910.0,0.50003207]
[1751538710417,0.0014,109920.0,109910.0,0.56917002]
[1751538710418,0.18716,109920.0,109910.0,0.56917002]
[1751538710622,0.18716,109920.0,109910.0,0.62367193]
[1751538710973,0.0014,109920.0,109910.0,0.76930438]
[1751538711177,0.18716,109920.0,109910.0,0.77840273]
[1751538711800,0.18716,109920.0,109910.0,0.787501]
[1751538712002,0.0014,109920.0,109910.0,0.77840273]
[1751538712203,0.18716,109920.0,109910.0,0.78750091]
[1751538712418,0.0014,109920.0,109910.0,0.790501]
[1751538713000,0.0014,109920.0,109910.0,0.59033732]
[1751538713429,0.0004,109920.0,109910.0,0.58733732]
[1751538713854,0.0014,109920.0,109910.0,0.59133732]
[1751538714037,0.0014,109920.0,109910.0,0.27280864]
[1751538717598,0.0014,109920.0,109910.0,0.59135521]
[1751538717803,0.0014,109920.0,109910.0,0.78242054]
[1751538718107,0.0014,109920.0,109910.0,0.59135521]
[1751538718613,0.0014,109920.0,109910.0,0.27282653]
[1751538718782,0.0014,109920.0,109910.0,0.59135521]
[1751538720515,0.0014,109920.0,109910.0,0.59135284]
[1751538722307,0.0014,109920.0,109910.0,0.62771659]
[1751538723055,0.0014,109920.0,109910.0,0.30918791]
[1751538723262,0.0014,109920.0,109910.0,0.62771659]
[1751538724102,0.0014,109920.0,109910.0,0.30918791]
[1751538724310,0.34992868,109920.0,109910.0,0.06261112]
[1751538724727,0.34992868,109920.0,109910.0,0.06260989]
[1751538725310,0.34992868,109920.0,109910.0,0.05960989]
[1751538725504,0.34992868,109920.0,109910.0,0.0062]
[1751538725681,0.34892868,109920.0,109910.0,0.0022]
[1751538727322,0.34892868,109920.0,109910.0,0.0032]
[1751538727892,0.39448868,109920.0,109910.0,0.0032]
[1751538738784,0.07596,109920.0,109910.0,0.0032]
[1751538738994,0.07596,109920.0,109910.0,0.32172868]
[1751538738995,0.0004,109920.0,109910.0,0.32172868]
[1751538739209,0.0004,109920.0,109910.0,0.45786504]
[1751538739410,0.18604,109920.0,109910.0,0.47346504]
[1751538739616,0.18604,109920.0,109910.0,0.11023693]
[1751538740167,0.18604,109920.0,109910.0,0.09463693]
[1751538742088,0.18604,109920.0,109910.0,0.11123693]
[1751538742672,0.0004,109920.0,109910.0,0.11123693]
[1751538742801,0.18604,109920.0,109910.0,0.49990874]
[1751538743002,0.18604,109920.0,109910.0,0.16518006]
[1751538744450,0.18604,109920.0,109910.0,0.09463693]
[1751538746770,0.18604,109920.0,109910.0,0.13100068]
[1751538747500,0.18604,109920.0,109910.0,0.14610068]
[1751538747639,0.18604,109920.0,109910.0,0.46462936]
[1751538748067,0.18604,109920.0,109910.0,0.47962936]
[1751538748268,0.0004,109920.0,109910.0,0.18463381]
[1751538748478,0.18608,109920.0,109910.0,0.18463381]
[1751538748651,0.0004,109920.0,109910.0,0.18463381]
[1751538748862,0.18608,109920.0,109910.0,0.18463381]
[1751538754148,0.18604,109920.0,109910.0,0.18463381]
[1751538761878,0.18604,109920.0,109910.0,0.48298893]
[1751538762260,0.0004,109920.0,109910.0,0.48298893]
[1751538762667,0.18604,109920.0,109910.0,0.48298893]
[1751538766733,0.20224,109920.0,109910.0,0.48298893]
[1751538771239,0.18604,109920.0,109910.0,0.48298893]
[1751538771908,0.18604,109920.0,109910.0,0.23913572]
[1751538772117,0.18604,109920.0,109910.0,0.53749084]
[1751538774635,0.18604,109920.0,109910.0,0.48385771]
[1751538774929,0.20124,109920.0,109910.0,0.48385771]
[1751538781412,0.18604,109920.0,109910.0,0.48385771]
[1751538782023,0.0004,109920.0,109910.0,0.18550259]
[1751538782226,0.0004,109920.0,109910.0,0.48385771]
[1751538782432,0.186,109920.0,109910.0,0.48385771]
[1751538783108,0.2012,109920.0,109910.0,0.48385771]
[1751538784857,0.0156,109920.0,109910.0,0.48385771]
[1751538785077,0.2012,109920.0,109910.0,0.48385771]
[1751538785301,0.2012,109920.0,109910.0,0.4831744]
[1751538789477,0.2163,109920.0,109910.0,0.18481928]
[1751538790918,0.51465512,109920.0,109910.0,0.18481928]
[1751538791187,0.2163,109920.0,109910.0,0.18481928]
[1751538791415,0.57070863,109920.0,109910.0,0.09338235]
[1751538791650,0.86906375,109920.0,109910.0,0.03888044]
[1751538792296,0.57070863,109920.0,109910.0,0.03888044]
[1751538792618,0.86906375,109920.0,109910.0,0.03888044]
[1751538792832,0.87044119,109920.0,109910.0,0.03888044]
[1751538793029,0.87044119,109920.0,109910.0,0.00251669]
[1751538793356,0.87953805,109920.0,109910.0,0.00251669]
[1751538793579,0.87044119,109920.0,109910.0,0.00251669]
[1751538793793,0.87953797,109920.0,109910.0,0.00251669]
[1751538793992,0.87953797,109920.0,109910.0,0.00271669]
[1751538793993,0.87044119,109920.0,109910.0,0.00271669]
[1751538794900,0.57208607,109920.0,109910.0,0.00271669]
[1751538796340,0.87044119,109920.0,109910.0,0.00271669]
[1751538796924,0.57208607,109920.0,109910.0,0.00271669]
[1751538799985,0.87044119,109920.0,109910.0,0.00271669]
[1751538812151,0.57208607,109920.0,109910.0,0.00271669]
[1751538817594,0.32905512,109920.0,109910.0,0.00271669]
[1751538817804,0.54495512,109920.0,109910.0,0.00271669]
[1751538820162,0.31395512,109920.0,109910.0,0.00271669]
[1751538821402,0.54495512,109920.0,109910.0,0.00271669]
[1751538825657,0.56045512,109920.0,109910.0,0.00271669]
[1751538827670,0.61667838,109920.0,109910.0,0.00271669]
[1751538828872,0.61805582,109920.0,109910.0,0.00271669]
[1751538829382,0.3197007,109920.0,109910.0,0.00271669]
[1751538829578,0.56183256,109920.0,109910.0,0.00271669]
[1751538832887,0.26347744,109920.0,109910.0,0.00271669]
[1751538833041,0.56183256,109920.0,109910.0,0.00271669]
[1751538847673,0.56171256,109920.0,109910.0,0.00271669]
[1751538851446,0.24785744,109920.0,109910.0,0.00271669]
[1751538851660,0.54621256,109920.0,109910.0,0.00271669]
[1751538852199,0.61926341,109920.0,109910.0,0.00271669]
[1751538856573,0.32090829,109920.0,109910.0,0.00271669]
[1751538856781,0.56211256,109920.0,109910.0,0.00271669]
[1751538862294,0.26375744,109920.0,109910.0,0.00271669]
[1751538862512,0.56211256,109920.0,109910.0,0.00271669]
[1751538863527,0.54621256,109920.0,109910.0,0.00271669]
[1751538865620,0.54617256,109920.0,109910.0,0.00271669]
[1751538865950,0.60331941,109920.0,109910.0,0.00271669]
[1751538867200,0.30496429,109920.0,109910.0,0.00271669]
[1751538867409,0.54617256,109920.0,109910.0,0.00271669]
[1751538869309,0.56257256,109920.0,109910.0,0.00271669]
[1751538869714,0.26421744,109920.0,109910.0,0.00271669]
[1751538869916,0.56257256,109920.0,109910.0,0.00271669]
[1751538873195,0.26421744,109920.0,109910.0,0.00271669]
[1751538873397,0.56257256,109920.0,109910.0,0.00271669]
[1751538873607,0.61886982,109920.0,109910.0,0.00271669]
[1751538878307,0.3205147,109920.0,109910.0,0.00271669]
[1751538878464,0.56257256,109920.0,109910.0,0.00271669]
[1751538882652,0.86092768,109920.0,109910.0,0.00271669]
[1751538885722,0.56257256,109920.0,109910.0,0.00271669]
[1751538885938,0.26421744,109920.0,109910.0,0.00271669]
[1751538886118,0.56257256,109920.0,109910.0,0.00271669]
[1751538887981,0.62159865,109920.0,109910.0,0.00271669]
[1751538890607,0.32324353,109920.0,109910.0,0.00271669]
[1751538890828,0.56257256,109920.0,109910.0,0.00271669]
[1751538891232,0.24769744,109920.0,109910.0,0.00271669]
[1751538891448,0.54605256,109920.0,109910.0,0.00271669]
[1751538895723,0.24769744,109920.0,109910.0,0.00271669]
[1751538895918,0.54605256,109920.0,109910.0,0.00271669]
[1751538898749,0.56019018,109920.0,109910.0,0.00271669]
[1751538899728,0.57629018,109920.0,109910.0,0.00271669]
[1751538902474,1.46458248,109920.0,109910.0,0.00271669]
[1751538902934,6.51671712,109920.0,109910.0,0.00271669]
[1751538903149,6.51671712,109920.0,109910.0,0.01125812]
[1751538903369,6.51671712,109920.0,109910.0,0.01025812]
[1751538903592,6.49179068,109920.0,109910.0,0.01025812]
[1751538904029,6.49379068,109920.0,109910.0,0.01025812]
[1751538904252,6.49279068,109920.0,109910.0,0.00171669]
[1751538904717,6.51958597,109920.0,109910.0,0.00171669]
[1751538905380,6.49237777,109920.0,109910.0,0.00171669]
[1751538905821,6.49137777,109920.0,109910.0,0.00171669]
[1751538906235,6.49437777,109920.0,109910.0,0.00171669]
[1751538908114,6.52158597,109920.0,109910.0,0.00171669]
[1751538909436,6.49437777,109920.0,109910.0,0.00171669]
[1751538910887,6.49837777,109920.0,109910.0,0.00271669]
[1751538913150,6.51452777,109920.0,109910.0,0.00271669]
[1751538919269,6.32924777,109920.0,109910.0,0.00271669]
[1751538919469,6.51452777,109920.0,109910.0,0.00271669]
[1751538920283,1.51452777,109920.0,109910.0,0.00271669]
[1751538920480,6.51452777,109920.0,109910.0,0.00271669]
[1751538926217,6.54163634,109920.0,109910.0,0.00271669]
[1751538928887,6.51452777,109920.0,109910.0,0.00271669]
[1751538929088,6.54164905,109920.0,109910.0,0.00271669]
[1751538930204,6.54166218,109920.0,109910.0,0.00271669]
[1751538930426,6.54166218,109920.0,109910.0,0.00135529]
[1751538931192,6.57770189,109920.0,109910.0,0.00135529]
[1751538932398,6.55056748,109920.0,109910.0,0.00135529]
[1751538933215,6.60462704,109920.0,109910.0,0.00135529]
[1751538937794,1.60462704,109920.0,109910.0,0.00135529]
[1751538938208,6.60462704,109920.0,109910.0,0.00135529]
[1751538940719,6.60446704,109920.0,109910.0,0.00135529]
[1751538953000,6.82318704,109920.0,109910.0,0.00135529]
[1751538953338,6.82318704,109920.0,109910.0,0.00989817]
[1751538954136,6.82318704,109920.0,109910.0,0.00135529]
[1751538955009,6.75298748,109920.0,109910.0,0.00135529]
[1751538955235,6.75298748,109920.0,109910.0,0.00989769]
[1751538956097,6.76898748,109920.0,109910.0,0.00989769]
[1751538957439,1.76898748,109920.0,109910.0,0.00989769]
[1751538957645,6.76898748,109920.0,109910.0,0.00989769]
[1751538958291,6.76898748,109920.0,109910.0,0.00135529]
[1751538959398,1.04502471,109920.0,109910.0,0.04179642]
[1751538959611,0.95977619,109920.0,109910.0,0.06528325]
[1751538959835,0.9688733,109920.0,109910.0,0.06528325]
[1751538960056,0.97797065,109920.0,109910.0,0.06528325]
[1751538960267,1.15992173,109920.0,109910.0,0.06528325]
[1751538960983,0.55411447,109920.0,109910.0,0.06528258]
[1751538961213,1.15082471,109920.0,109910.0,0.06528258]
[1751538961766,0.3475509,109920.0,109910.0,0.06528258]
[1751538961974,0.33073437,109920.0,109910.0,0.06528258]
[1751538962179,0.74224461,109920.0,109910.0,0.06528258]
[1751538962406,0.92744461,109920.0,109910.0,0.06528258]
[1751538963145,0.92744461,109920.0,109910.0,0.06525399]
[1751538963146,0.92444461,109920.0,109910.0,0.06525399]
[1751538963370,0.92644461,109920.0,109910.0,0.06525399]
[1751538963595,0.92244461,109920.0,109910.0,0.06425399]
[1751538963798,0.93154139,109920.0,109910.0,0.05571286]
[1751538964180,0.93454139,109920.0,109910.0,0.05671286]
[1751538964798,0.92544461,109920.0,109910.0,0.05671286]
[1751538965002,1.01688154,109920.0,109910.0,0.05671286]
[1751538965636,1.01688154,109920.0,109910.0,0.03965281]
[1751538967628,0.78636154,109920.0,109910.0,0.03965281]
[1751538967826,0.92536461,109920.0,109910.0,0.03965281]
[1751538968739,0.93446139,109920.0,109910.0,0.03965281]
[1751538968914,0.92536461,109920.0,109910.0,0.03965281]
[1751538969117,0.83392768,109920.0,109910.0,0.03965281]
[1751538972375,0.83392768,109920.0,109910.0,0.05668068]
[1751538973032,0.92536461,109920.0,109910.0,0.05668068]
[1751538978120,0.83392768,109920.0,109910.0,0.05668068]
[1751538980546,0.53557256,109920.0,109910.0,0.05668068]
[1751538980756,0.23584,109920.0,109910.0,0.3550358]
[1751538980978,0.2358,109920.0,109910.0,0.3550358]
[1751538982301,0.05068,109920.0,109910.0,0.3550358]
[1751538982712,0.0054,109920.0,109910.0,0.62843979]
[1751538982910,0.19052,109920.0,109910.0,0.48283648]
[1751538983266,0.0054,109920.0,109910.0,0.47371604]
[1751538983466,0.19052,109920.0,109910.0,0.51007979]
[1751538983785,0.18852,109920.0,109910.0,0.62132177]
[1751538984308,0.18852,109920.0,109910.0,0.62330809]
[1751538984486,0.18852,109920.0,109910.0,0.30514792]
[1751538984688,0.18852,109920.0,109910.0,0.62330809]
[1751538985836,0.18852,109920.0,109910.0,0.65045644]